[Event "December 12 Late 2023"]
[Site "https://www.chess.com"]
[Date "2023.12.12"]
[Round "8"]
[White "Saravana, Krishnan P."]
[Black "Buchenau, Frank"]
[Result "1-0"]
[Board "71"]
[TimeControl "180+1"]
[WhiteFideId "5018382"]
[BlackFideId "4604350"]
[WhiteElo "2603"]
[BlackElo "2420"]
[WhiteTeam "IND"]
[BlackTeam "GER"]
[WhiteClock "0:02:24"]
[BlackClock "0:00:00"]

1. e4 {[%clk 0:02:58]}  e6 {[%clk 0:00:20]} 2. d4 {[%clk 0:02:57]}  d5 {[%clk 0:00:20]} 3. Nd2 {[%clk 0:02:57]}  Nf6 {[%clk 0:00:19]} 4. e5 {[%clk 0:02:57]}  Nfd7 {[%clk 0:00:19]} 5. Bd3 {[%clk 0:02:57]}  c5 {[%clk 0:00:20]} 6. c3 {[%clk 0:02:58]}  b6 {[%clk 0:00:20]} 7. Ngf3 {[%clk 0:02:54]}  Ba6 {[%clk 0:00:20]} 8. Bxa6 {[%clk 0:02:51]}  Nxa6 {[%clk 0:00:21]} 9. O-O {[%clk 0:02:51]}  Nc7 {[%clk 0:00:21]} 10. Re1 {[%clk 0:02:51]}  Be7 {[%clk 0:00:21]} 11. Nf1 {[%clk 0:02:47]}  c4 {[%clk 0:00:18]} 12. Ng3 {[%clk 0:02:46]}  h5 {[%clk 0:00:17]} 13. b3 {[%clk 0:02:41]}  h4 {[%clk 0:00:17]} 14. Nf1 {[%clk 0:02:41]}  h3 {[%clk 0:00:16]} 15. g3 {[%clk 0:02:39]}  b5 {[%clk 0:00:16]} 16. a4 {[%clk 0:02:39]}  cxb3 {[%clk 0:00:16]} 17. Qxb3 {[%clk 0:02:36]}  bxa4 {[%clk 0:00:13]} 18. Qxa4 {[%clk 0:02:36]}  Qb8 {[%clk 0:00:07]} 19. Bg5 {[%clk 0:02:32]}  Qb5 {[%clk 0:00:00]} 20. Qa2 {[%clk 0:02:24]} 1-0

[Event "December 12 Late 2023"]
[Site "https://www.chess.com"]
[Date "2023.12.12"]
[Round "8"]
[White "Tikhonov, Viacheslav"]
[Black "Marchesich, Giovanni"]
[Result "1-0"]
[Board "75"]
[TimeControl "180+1"]
[WhiteFideId "44196407"]
[BlackFideId "2824790"]
[WhiteElo "2511"]
[BlackElo "2401"]
[WhiteTeam "RUS"]
[BlackTeam "ITA"]
[WhiteClock "0:00:05"]
[BlackClock "0:00:05"]

1. e4 {[%clk 0:03:00]}  d5 {[%clk 0:02:59]} 2. exd5 {[%clk 0:03:01]}  Qxd5 {[%clk 0:02:59]} 3. Nc3 {[%clk 0:03:02]}  Qd8 {[%clk 0:03:00]} 4. d4 {[%clk 0:03:03]}  Bf5 {[%clk 0:03:00]} 5. Bc4 {[%clk 0:02:56]}  e6 {[%clk 0:02:58]} 6. Nf3 {[%clk 0:02:55]}  c6 {[%clk 0:02:58]} 7. O-O {[%clk 0:02:55]}  Nf6 {[%clk 0:02:58]} 8. Bf4 {[%clk 0:02:50]}  Bd6 {[%clk 0:02:58]} 9. Ne5 {[%clk 0:02:49]}  O-O {[%clk 0:02:54]} 10. Re1 {[%clk 0:02:48]}  Qc7 {[%clk 0:02:54]} 11. Bd3 {[%clk 0:02:33]}  Bxd3 {[%clk 0:02:52]} 12. Qxd3 {[%clk 0:02:32]}  Nbd7 {[%clk 0:02:53]} 13. Bg3 {[%clk 0:02:25]}  Rad8 {[%clk 0:02:51]} 14. Nxd7 {[%clk 0:02:19]}  Rxd7 {[%clk 0:02:47]} 15. Rad1 {[%clk 0:02:04]}  Rfd8 {[%clk 0:02:46]} 16. Qc4 {[%clk 0:01:59]}  Qa5 {[%clk 0:02:23]} 17. a3 {[%clk 0:01:54]}  Nd5 {[%clk 0:02:17]} 18. Bxd6 {[%clk 0:01:40]}  Rxd6 {[%clk 0:02:13]} 19. Ne4 {[%clk 0:01:39]}  Nb6 {[%clk 0:02:06]} 20. Qc3 {[%clk 0:00:58]}  Qxc3 {[%clk 0:01:57]} 21. bxc3 {[%clk 0:00:59]}  Rd5 {[%clk 0:01:50]} 22. Nc5 {[%clk 0:00:54]}  Rb8 {[%clk 0:01:25]} 23. Rb1 {[%clk 0:00:43]}  Nc4 {[%clk 0:01:25]} 24. Rxb7 {[%clk 0:00:38]}  Rxb7 {[%clk 0:01:22]} 25. Nxb7 {[%clk 0:00:39]}  Nxa3 {[%clk 0:01:22]} 26. Ra1 {[%clk 0:00:38]}  Rb5 {[%clk 0:01:18]} 27. g3 {[%clk 0:00:22]}  Nxc2 {[%clk 0:01:16]} 28. Rxa7 {[%clk 0:00:21]}  g6 {[%clk 0:01:14]} 29. Nd6 {[%clk 0:00:18]}  Rb1+ {[%clk 0:01:12]} 30. Kg2 {[%clk 0:00:18]}  Ne1+ {[%clk 0:01:11]} 31. Kh3 {[%clk 0:00:19]}  Rc1 {[%clk 0:01:04]} 32. Nxf7 {[%clk 0:00:17]}  Rxc3 {[%clk 0:01:01]} 33. Ng5 {[%clk 0:00:11]}  c5 {[%clk 0:00:54]} 34. Nxe6 {[%clk 0:00:06]}  cxd4 {[%clk 0:00:46]} 35. Rg7+ {[%clk 0:00:04]}  Kh8 {[%clk 0:00:46]} 36. Rf7 {[%clk 0:00:05]}  h5 {[%clk 0:00:37]} 37. Nxd4 {[%clk 0:00:05]}  Nd3 {[%clk 0:00:35]} 38. f4 {[%clk 0:00:03]}  Rc1 {[%clk 0:00:31]} 39. Kh4 {[%clk 0:00:03]}  Rc5 {[%clk 0:00:23]} 40. Nf3 {[%clk 0:00:03]}  Kg8 {[%clk 0:00:20]} 41. Rd7 {[%clk 0:00:04]}  Nf2 {[%clk 0:00:19]} 42. Ne5 {[%clk 0:00:04]}  Ng4 {[%clk 0:00:12]} 43. Nxg4 {[%clk 0:00:03]}  hxg4 {[%clk 0:00:11]} 44. Kxg4 {[%clk 0:00:04]}  Kf8 {[%clk 0:00:11]} 45. h4 {[%clk 0:00:04]}  Kg8 {[%clk 0:00:12]} 46. Re7 {[%clk 0:00:04]}  Kf8 {[%clk 0:00:12]} 47. Re5 {[%clk 0:00:04]}  Rc6 {[%clk 0:00:12]} 48. h5 {[%clk 0:00:05]}  Kg7 {[%clk 0:00:11]} 49. hxg6 {[%clk 0:00:05]}  Rxg6+ {[%clk 0:00:05]} 50. Rg5 {[%clk 0:00:05]} 1-0

[Event "December 12 Late 2023"]
[Site "https://www.chess.com"]
[Date "2023.12.12"]
[Round "8"]
[White "Gasparyan, David"]
[Black "Storn, Justin"]
[Result "0-1"]
[Board "78"]
[TimeControl "180+1"]
[WhiteFideId "13311980"]
[BlackFideId "30922720"]
[WhiteElo "2491"]
[BlackElo "2365"]
[WhiteTeam "USA"]
[BlackTeam "USA"]
[WhiteClock "0:00:07"]
[BlackClock "0:00:09"]

1. Nf3 {[%clk 0:03:00]}  Nf6 {[%clk 0:02:56]} 2. g3 {[%clk 0:03:01]}  g6 {[%clk 0:02:57]} 3. Bg2 {[%clk 0:03:01]}  Bg7 {[%clk 0:02:58]} 4. O-O {[%clk 0:03:02]}  O-O {[%clk 0:02:58]} 5. c4 {[%clk 0:03:01]}  d6 {[%clk 0:02:59]} 6. Nc3 {[%clk 0:03:01]}  Nc6 {[%clk 0:02:58]} 7. d4 {[%clk 0:03:01]}  a6 {[%clk 0:02:58]} 8. Bf4 {[%clk 0:02:52]}  Rb8 {[%clk 0:02:37]} 9. Rc1 {[%clk 0:02:50]}  Bd7 {[%clk 0:02:35]} 10. d5 {[%clk 0:02:32]}  Na5 {[%clk 0:02:35]} 11. Nd2 {[%clk 0:02:31]}  c5 {[%clk 0:02:35]} 12. e4 {[%clk 0:02:25]}  b5 {[%clk 0:02:26]} 13. cxb5 {[%clk 0:02:21]}  axb5 {[%clk 0:02:25]} 14. b3 {[%clk 0:02:21]}  b4 {[%clk 0:02:23]} 15. Ne2 {[%clk 0:02:21]}  Bb5 {[%clk 0:02:22]} 16. Re1 {[%clk 0:02:19]}  Nd7 {[%clk 0:02:21]} 17. Nc4 {[%clk 0:02:10]}  Bxc4 {[%clk 0:02:19]} 18. bxc4 {[%clk 0:02:11]}  Nb6 {[%clk 0:02:16]} 19. Qd3 {[%clk 0:02:07]}  Qc8 {[%clk 0:02:13]} 20. Rc2 {[%clk 0:01:53]}  Qa6 {[%clk 0:02:11]} 21. Rec1 {[%clk 0:01:53]}  Ra8 {[%clk 0:02:12]} 22. g4 {[%clk 0:01:35]}  Ra7 {[%clk 0:02:09]} 23. Bf1 {[%clk 0:01:33]}  Na4 {[%clk 0:02:04]} 24. Rb1 {[%clk 0:01:29]}  Rfa8 {[%clk 0:01:56]} 25. Bd2 {[%clk 0:01:22]}  Qc8 {[%clk 0:01:43]} 26. h3 {[%clk 0:01:19]}  Nb6 {[%clk 0:01:21]} 27. Nc1 {[%clk 0:01:19]}  Nd7 {[%clk 0:01:19]} 28. Qe2 {[%clk 0:01:13]}  Nb7 {[%clk 0:01:16]} 29. Bg5 {[%clk 0:01:09]}  Qe8 {[%clk 0:01:12]} 30. Rb3 {[%clk 0:01:02]}  h6 {[%clk 0:01:02]} 31. Bh4 {[%clk 0:00:57]}  Ne5 {[%clk 0:00:55]} 32. f4 {[%clk 0:00:56]}  Nd7 {[%clk 0:00:55]} 33. Bf2 {[%clk 0:00:55]}  g5 {[%clk 0:00:33]} 34. e5 {[%clk 0:00:27]}  dxe5 {[%clk 0:00:29]} 35. f5 {[%clk 0:00:27]}  Nd6 {[%clk 0:00:24]} 36. Bg2 {[%clk 0:00:19]}  Ra5 {[%clk 0:00:14]} 37. Be1 {[%clk 0:00:10]}  Nb6 {[%clk 0:00:13]} 38. Nd3 {[%clk 0:00:09]}  Nbxc4 {[%clk 0:00:12]} 39. Nf2 {[%clk 0:00:08]}  Na3 {[%clk 0:00:12]} 40. Rcb2 {[%clk 0:00:07]}  Rb5 {[%clk 0:00:10]} 41. Ne4 {[%clk 0:00:07]}  Rab8 {[%clk 0:00:09]} 42. f6 {[%clk 0:00:06]}  Nxe4 {[%clk 0:00:06]} 43. fxg7 {[%clk 0:00:06]}  Nd6 {[%clk 0:00:04]} 44. Qxe5 {[%clk 0:00:07]}  f6 {[%clk 0:00:04]} 45. Qe6+ {[%clk 0:00:07]}  Kxg7 {[%clk 0:00:04]} 46. Re3 {[%clk 0:00:07]}  R8b7 {[%clk 0:00:04]} 47. Bf1 {[%clk 0:00:07]}  Qf7 {[%clk 0:00:04]} 48. Bxb5 {[%clk 0:00:06]}  Naxb5 {[%clk 0:00:04]} 49. Qxf7+ {[%clk 0:00:06]}  Kxf7 {[%clk 0:00:04]} 50. a4 {[%clk 0:00:06]}  Nd4 {[%clk 0:00:03]} 51. a5 {[%clk 0:00:05]}  Nc4 {[%clk 0:00:04]} 52. Ree2 {[%clk 0:00:05]}  Nxb2 {[%clk 0:00:03]} 53. Rxb2 {[%clk 0:00:05]}  Ra7 {[%clk 0:00:04]} 54. Ra2 {[%clk 0:00:05]}  b3 {[%clk 0:00:04]} 55. Ra1 {[%clk 0:00:04]}  c4 {[%clk 0:00:04]} 56. Bc3 {[%clk 0:00:04]}  Nc2 {[%clk 0:00:04]} 57. a6 {[%clk 0:00:03]}  Nxa1 {[%clk 0:00:03]} 58. Bxa1 {[%clk 0:00:03]}  Rxa6 {[%clk 0:00:04]} 59. Bd4 {[%clk 0:00:03]}  Ra2 {[%clk 0:00:04]} 60. Kf1 {[%clk 0:00:03]}  b2 {[%clk 0:00:05]} 61. Bxb2 {[%clk 0:00:03]}  Rxb2 {[%clk 0:00:06]} 62. d6 {[%clk 0:00:04]}  Rd2 {[%clk 0:00:07]} 63. d7 {[%clk 0:00:04]}  Rxd7 {[%clk 0:00:06]} 64. Ke2 {[%clk 0:00:05]}  Rd6 {[%clk 0:00:07]} 65. Ke3 {[%clk 0:00:05]}  c3 {[%clk 0:00:08]} 66. Ke4 {[%clk 0:00:06]}  c2 {[%clk 0:00:09]} 67. h4 {[%clk 0:00:06]}  c1=Q {[%clk 0:00:09]} 68. h5 {[%clk 0:00:07]}  Qf4# {[%clk 0:00:09]} 0-1

[Event "December 12 Late 2023"]
[Site "https://www.chess.com"]
[Date "2023.12.12"]
[Round "8"]
[White "Ramadoss, Ashokkumar"]
[Black "Shton, Roman"]
[Result "1/2-1/2"]
[Board "80"]
[TimeControl "180+1"]
[WhiteFideId "5040990"]
[BlackFideId "14137461"]
[WhiteElo "2328"]
[BlackElo "2488"]
[WhiteTeam "IND"]
[BlackTeam "UKR"]
[WhiteClock "0:00:29"]
[BlackClock "0:01:10"]

1. Nf3 {[%clk 0:03:00]}  d6 {[%clk 0:03:00]} 2. d4 {[%clk 0:02:56]}  g6 {[%clk 0:02:59]} 3. c4 {[%clk 0:02:56]}  Bg7 {[%clk 0:02:59]} 4. Nc3 {[%clk 0:02:57]}  Nd7 {[%clk 0:03:00]} 5. g3 {[%clk 0:02:53]}  e5 {[%clk 0:03:00]} 6. Bg2 {[%clk 0:02:53]}  Ne7 {[%clk 0:02:59]} 7. O-O {[%clk 0:02:53]}  O-O {[%clk 0:02:59]} 8. h3 {[%clk 0:02:53]}  c6 {[%clk 0:02:57]} 9. e4 {[%clk 0:02:52]}  Qc7 {[%clk 0:02:56]} 10. Re1 {[%clk 0:02:52]}  exd4 {[%clk 0:02:52]} 11. Nxd4 {[%clk 0:02:50]}  Nc5 {[%clk 0:02:52]} 12. Rb1 {[%clk 0:02:46]}  f5 {[%clk 0:02:39]} 13. exf5 {[%clk 0:02:10]}  Nxf5 {[%clk 0:02:40]} 14. Nb3 {[%clk 0:02:09]}  Nxb3 {[%clk 0:02:34]} 15. axb3 {[%clk 0:02:10]}  Qb6 {[%clk 0:02:24]} 16. Na4 {[%clk 0:01:53]}  Qd4 {[%clk 0:02:20]} 17. g4 {[%clk 0:01:28]}  Nh4 {[%clk 0:02:00]} 18. Qxd4 {[%clk 0:01:20]}  Bxd4 {[%clk 0:02:01]} 19. Be3 {[%clk 0:01:20]}  Nxg2 {[%clk 0:01:53]} 20. Kxg2 {[%clk 0:01:19]}  Be5 {[%clk 0:01:53]} 21. Rbd1 {[%clk 0:01:14]}  b5 {[%clk 0:01:48]} 22. cxb5 {[%clk 0:01:12]}  cxb5 {[%clk 0:01:49]} 23. Nc3 {[%clk 0:01:12]}  Bb7+ {[%clk 0:01:50]} 24. Kg1 {[%clk 0:01:06]}  b4 {[%clk 0:01:44]} 25. Nd5 {[%clk 0:01:05]}  Bxb2 {[%clk 0:01:38]} 26. Ne7+ {[%clk 0:00:47]}  Kf7 {[%clk 0:01:38]} 27. Nd5 {[%clk 0:00:46]}  Be5 {[%clk 0:01:24]} 28. f4 {[%clk 0:00:41]}  Bf6 {[%clk 0:01:17]} 29. Nxf6 {[%clk 0:00:39]}  Kxf6 {[%clk 0:01:18]} 30. Rxd6+ {[%clk 0:00:39]}  Kg7 {[%clk 0:01:11]} 31. Bd4+ {[%clk 0:00:33]}  Kg8 {[%clk 0:01:11]} 32. Rd7 {[%clk 0:00:32]}  Rf7 {[%clk 0:01:11]} 33. Ree7 {[%clk 0:00:31]}  Bd5 {[%clk 0:01:06]} 34. Rxf7 {[%clk 0:00:29]}  Bxf7 {[%clk 0:01:06]} 35. Rxa7 {[%clk 0:00:29]}  Rxa7 {[%clk 0:01:07]} 36. Bxa7 {[%clk 0:00:29]}  Bxb3 {[%clk 0:01:08]} 37. Bc5 {[%clk 0:00:29]}  Be6 {[%clk 0:01:05]} 38. Bxb4 {[%clk 0:00:29]}  h5 {[%clk 0:01:05]} 39. gxh5 {[%clk 0:00:28]}  gxh5 {[%clk 0:01:06]} 40. h4 {[%clk 0:00:28]}  Kh7 {[%clk 0:01:06]} 41. Kf2 {[%clk 0:00:28]}  Kg6 {[%clk 0:01:07]} 42. Kg3 {[%clk 0:00:29]}  Kf5 {[%clk 0:01:07]} 43. Bc3 {[%clk 0:00:27]}  Bd5 {[%clk 0:01:07]} 44. Be5 {[%clk 0:00:27]}  Be6 {[%clk 0:01:08]} 45. Bc7 {[%clk 0:00:27]}  Bd5 {[%clk 0:01:09]} 46. Be5 {[%clk 0:00:28]}  Be4 {[%clk 0:01:09]} 47. Bb8 {[%clk 0:00:28]}  Bd5 {[%clk 0:01:10]} 48. Be5 {[%clk 0:00:29]} 1/2-1/2

[Event "December 12 Late 2023"]
[Site "https://www.chess.com"]
[Date "2023.12.12"]
[Round "8"]
[White "Kornyukov, Alexey"]
[Black "ChessSG1"]
[Result "0-1"]
[Board "83"]
[TimeControl "180+1"]
[WhiteFideId "4150457"]
[WhiteElo "2315"]
[BlackElo "2472"]
[WhiteTeam "RUS"]
[WhiteClock "0:00:00"]
[BlackClock "0:01:24"]

1. d4 {[%clk 0:03:00]}  d5 {[%clk 0:02:59]} 2. c4 {[%clk 0:03:00]}  e6 {[%clk 0:02:59]} 3. Nc3 {[%clk 0:03:00]}  Nf6 {[%clk 0:02:59]} 4. cxd5 {[%clk 0:03:00]}  exd5 {[%clk 0:03:00]} 5. Bg5 {[%clk 0:03:00]}  c6 {[%clk 0:03:01]} 6. e3 {[%clk 0:03:00]}  Bd6 {[%clk 0:03:00]} 7. Bd3 {[%clk 0:03:00]}  O-O {[%clk 0:03:00]} 8. Qc2 {[%clk 0:02:55]}  h6 {[%clk 0:03:00]} 9. Bh4 {[%clk 0:02:55]}  Re8 {[%clk 0:02:59]} 10. Nge2 {[%clk 0:02:55]}  a5 {[%clk 0:02:59]} 11. h3 {[%clk 0:02:41]}  Na6 {[%clk 0:02:59]} 12. a3 {[%clk 0:02:40]}  Nc7 {[%clk 0:02:59]} 13. O-O {[%clk 0:02:30]}  Ne6 {[%clk 0:03:00]} 14. Rad1 {[%clk 0:02:22]}  Bd7 {[%clk 0:02:59]} 15. f3 {[%clk 0:02:14]}  Ng5 {[%clk 0:02:58]} 16. e4 {[%clk 0:02:04]}  Nfxe4 {[%clk 0:02:57]} 17. fxe4 {[%clk 0:02:04]}  Nxh3+ {[%clk 0:02:57]} 18. gxh3 {[%clk 0:02:01]}  Qxh4 {[%clk 0:02:56]} 19. Rf3 {[%clk 0:01:36]}  Bxh3 {[%clk 0:02:40]} 20. e5 {[%clk 0:01:28]}  Rxe5 {[%clk 0:02:29]} 21. Bh7+ {[%clk 0:01:25]}  Kh8 {[%clk 0:02:27]} 22. dxe5 {[%clk 0:01:12]}  Bc5+ {[%clk 0:02:24]} 23. Nd4 {[%clk 0:01:01]}  Bxd4+ {[%clk 0:02:01]} 24. Rxd4 {[%clk 0:00:58]}  Qxd4+ {[%clk 0:02:02]} 25. Kh2 {[%clk 0:00:57]}  Bg4 {[%clk 0:01:55]} 26. Rxf7 {[%clk 0:00:31]}  Qxe5+ {[%clk 0:01:55]} 27. Kg2 {[%clk 0:00:27]}  Bh3+ {[%clk 0:01:39]} 28. Kxh3 {[%clk 0:00:25]}  Qh5+ {[%clk 0:01:39]} 29. Kg2 {[%clk 0:00:21]}  Qxf7 {[%clk 0:01:39]} 30. Ne2 {[%clk 0:00:12]}  Rf8 {[%clk 0:01:38]} 31. Ng3 {[%clk 0:00:11]}  Qf3+ {[%clk 0:01:38]} 32. Kh3 {[%clk 0:00:11]}  Rf4 {[%clk 0:01:27]} 33. Bg6 {[%clk 0:00:08]}  Qg4+ {[%clk 0:01:27]} 34. Kg2 {[%clk 0:00:00]}  Rf3 {[%clk 0:01:24]} 0-1

[Event "December 12 Late 2023"]
[Site "https://www.chess.com"]
[Date "2023.12.12"]
[Round "8"]
[White "Silvestre, Christian"]
[Black "Yandarbiev, Ruslan"]
[Result "0-1"]
[Board "84"]
[TimeControl "180+1"]
[WhiteFideId "30956269"]
[BlackFideId "4115023"]
[WhiteElo "2313"]
[BlackElo "2469"]
[WhiteTeam "USA"]
[BlackTeam "RUS"]
[WhiteClock "0:00:10"]
[BlackClock "0:01:55"]

1. e4 {[%clk 0:02:41]}  e5 {[%clk 0:02:58]} 2. d4 {[%clk 0:02:36]}  exd4 {[%clk 0:02:58]} 3. Nf3 {[%clk 0:02:36]}  Nc6 {[%clk 0:02:57]} 4. Nxd4 {[%clk 0:02:36]}  Nf6 {[%clk 0:02:56]} 5. Bb5 {[%clk 0:02:33]}  Bc5 {[%clk 0:02:52]} 6. Nb3 {[%clk 0:02:31]}  Bb6 {[%clk 0:02:51]} 7. Nc3 {[%clk 0:02:29]}  O-O {[%clk 0:02:51]} 8. O-O {[%clk 0:02:28]}  h6 {[%clk 0:02:51]} 9. Re1 {[%clk 0:02:25]}  d6 {[%clk 0:02:51]} 10. h3 {[%clk 0:02:19]}  Re8 {[%clk 0:02:50]} 11. Bf4 {[%clk 0:02:14]}  Bd7 {[%clk 0:02:50]} 12. Bd3 {[%clk 0:02:04]}  Ne5 {[%clk 0:02:49]} 13. Qd2 {[%clk 0:01:57]}  Bc6 {[%clk 0:02:47]} 14. Rad1 {[%clk 0:01:55]}  Ng6 {[%clk 0:02:41]} 15. Bg3 {[%clk 0:01:46]}  Nh5 {[%clk 0:02:39]} 16. Bh2 {[%clk 0:01:45]}  Qh4 {[%clk 0:02:37]} 17. Nd5 {[%clk 0:01:29]}  Bxd5 {[%clk 0:02:31]} 18. exd5 {[%clk 0:01:30]}  Ngf4 {[%clk 0:02:31]} 19. Bf1 {[%clk 0:01:28]}  Qg5 {[%clk 0:02:29]} 20. Kh1 {[%clk 0:01:22]}  Rxe1 {[%clk 0:02:26]} 21. Rxe1 {[%clk 0:01:08]}  Nxd5 {[%clk 0:02:24]} 22. Qxg5 {[%clk 0:00:48]}  hxg5 {[%clk 0:02:25]} 23. Kg1 {[%clk 0:00:47]}  Kf8 {[%clk 0:02:23]} 24. Bb5 {[%clk 0:00:43]}  a6 {[%clk 0:02:16]} 25. Bc4 {[%clk 0:00:41]}  Nhf6 {[%clk 0:02:11]} 26. Rd1 {[%clk 0:00:36]}  Nb4 {[%clk 0:02:08]} 27. c3 {[%clk 0:00:33]}  Nc6 {[%clk 0:02:04]} 28. Bd3 {[%clk 0:00:26]}  Re8 {[%clk 0:02:03]} 29. Nd2 {[%clk 0:00:24]}  Ne5 {[%clk 0:02:03]} 30. Bf1 {[%clk 0:00:23]}  g4 {[%clk 0:02:00]} 31. h4 {[%clk 0:00:21]}  Nh5 {[%clk 0:01:59]} 32. Ne4 {[%clk 0:00:18]}  f5 {[%clk 0:01:57]} 33. Ng5 {[%clk 0:00:10]}  g3 {[%clk 0:01:55]} 0-1

[Event "December 12 Late 2023"]
[Site "https://www.chess.com"]
[Date "2023.12.12"]
[Round "8"]
[White "Bazzano, Sebastian"]
[Black "Mazurkiewicz, Michal"]
[Result "0-1"]
[Board "85"]
[TimeControl "180+1"]
[WhiteFideId "104566"]
[BlackFideId "1124943"]
[WhiteElo "2310"]
[BlackElo "2460"]
[WhiteTeam "ARG"]
[BlackTeam "POL"]
[WhiteClock "0:00:00"]
[BlackClock "0:00:08"]

1. d4 {[%clk 0:03:00]}  Nf6 {[%clk 0:02:59]} 2. Bf4 {[%clk 0:02:59]}  g6 {[%clk 0:02:59]} 3. Nc3 {[%clk 0:02:59]}  d5 {[%clk 0:02:59]} 4. e3 {[%clk 0:02:59]}  Bg7 {[%clk 0:02:59]} 5. h4 {[%clk 0:02:58]}  h6 {[%clk 0:02:59]} 6. Nf3 {[%clk 0:02:56]}  O-O {[%clk 0:02:59]} 7. Ne5 {[%clk 0:02:56]}  Nbd7 {[%clk 0:02:46]} 8. Bd3 {[%clk 0:02:41]}  c6 {[%clk 0:02:38]} 9. Qf3 {[%clk 0:02:33]}  h5 {[%clk 0:02:26]} 10. Qg3 {[%clk 0:02:20]}  c5 {[%clk 0:01:33]} 11. O-O-O {[%clk 0:01:35]}  c4 {[%clk 0:01:29]} 12. Be2 {[%clk 0:01:30]}  b5 {[%clk 0:01:02]} 13. Nc6 {[%clk 0:01:09]}  Qe8 {[%clk 0:01:00]} 14. Bf3 {[%clk 0:01:08]}  Nb6 {[%clk 0:00:50]} 15. Nxe7+ {[%clk 0:00:33]}  Qxe7 {[%clk 0:00:50]} 16. Bd6 {[%clk 0:00:33]}  Qe8 {[%clk 0:00:43]} 17. Bxf8 {[%clk 0:00:28]}  Bxf8 {[%clk 0:00:43]} 18. Rhe1 {[%clk 0:00:24]}  b4 {[%clk 0:00:43]} 19. Nxd5 {[%clk 0:00:21]}  Nfxd5 {[%clk 0:00:38]} 20. e4 {[%clk 0:00:21]}  Nf6 {[%clk 0:00:27]} 21. e5 {[%clk 0:00:21]}  Ng4 {[%clk 0:00:27]} 22. Bxa8 {[%clk 0:00:20]}  Qa4 {[%clk 0:00:25]} 23. Bf3 {[%clk 0:00:10]}  Qxa2 {[%clk 0:00:23]} 24. Bxg4 {[%clk 0:00:10]}  hxg4 {[%clk 0:00:19]} 25. Kd2 {[%clk 0:00:06]}  Qxb2 {[%clk 0:00:17]} 26. Ke2 {[%clk 0:00:06]}  Qxc2+ {[%clk 0:00:09]} 27. Kf1 {[%clk 0:00:04]}  c3 {[%clk 0:00:09]} 28. d5 {[%clk 0:00:03]}  b3 {[%clk 0:00:09]} 29. e6 {[%clk 0:00:03]}  Qf5 {[%clk 0:00:07]} 30. exf7+ {[%clk 0:00:02]}  Qxf7 {[%clk 0:00:08]} 31. d6 {[%clk 0:00:01]}  c2 {[%clk 0:00:08]} 32. Rc1 {[%clk 0:00:00]}  Bf5 {[%clk 0:00:08]} 0-1

[Event "December 12 Late 2023"]
[Site "https://www.chess.com"]
[Date "2023.12.12"]
[Round "8"]
[White "Arnold, Ken"]
[Black "Player, Edmund C"]
[Result "1-0"]
[Board "86"]
[TimeControl "180+1"]
[WhiteFideId "2056836"]
[BlackFideId "406520"]
[WhiteElo "2455"]
[BlackElo "2284"]
[WhiteTeam "USA"]
[BlackTeam "ENG"]
[WhiteClock "0:00:46"]
[BlackClock "0:00:03"]

1. d4 {[%clk 0:03:00]}  Nf6 {[%clk 0:02:59]} 2. c4 {[%clk 0:03:01]}  e6 {[%clk 0:03:00]} 3. Nf3 {[%clk 0:03:01]}  Bb4+ {[%clk 0:02:54]} 4. Nbd2 {[%clk 0:02:58]}  O-O {[%clk 0:02:52]} 5. e3 {[%clk 0:02:58]}  b6 {[%clk 0:02:48]} 6. a3 {[%clk 0:02:58]}  Be7 {[%clk 0:02:47]} 7. Be2 {[%clk 0:02:58]}  Bb7 {[%clk 0:02:46]} 8. O-O {[%clk 0:02:58]}  d6 {[%clk 0:02:44]} 9. b4 {[%clk 0:02:57]}  Nbd7 {[%clk 0:02:42]} 10. Bb2 {[%clk 0:02:57]}  Re8 {[%clk 0:02:38]} 11. Qc2 {[%clk 0:02:56]}  Bf8 {[%clk 0:02:35]} 12. Rfd1 {[%clk 0:02:56]}  c5 {[%clk 0:02:17]} 13. dxc5 {[%clk 0:02:55]}  dxc5 {[%clk 0:02:15]} 14. b5 {[%clk 0:02:52]}  Qc7 {[%clk 0:02:11]} 15. Nf1 {[%clk 0:02:44]}  Be4 {[%clk 0:02:09]} 16. Qc3 {[%clk 0:02:37]}  a6 {[%clk 0:01:55]} 17. a4 {[%clk 0:02:31]}  Bb7 {[%clk 0:01:02]} 18. Ng3 {[%clk 0:02:27]}  Ne4 {[%clk 0:00:56]} 19. Nxe4 {[%clk 0:02:27]}  Bxe4 {[%clk 0:00:56]} 20. Ne5 {[%clk 0:02:02]}  Nxe5 {[%clk 0:00:48]} 21. Qxe5 {[%clk 0:02:03]}  Qxe5 {[%clk 0:00:23]} 22. Bxe5 {[%clk 0:02:04]}  Ra7 {[%clk 0:00:11]} 23. f3 {[%clk 0:01:56]}  Bg6 {[%clk 0:00:08]} 24. e4 {[%clk 0:01:54]}  f6 {[%clk 0:00:07]} 25. Bd6 {[%clk 0:01:45]}  Bf7 {[%clk 0:00:07]} 26. Bxf8 {[%clk 0:01:44]}  Kxf8 {[%clk 0:00:07]} 27. a5 {[%clk 0:01:33]}  axb5 {[%clk 0:00:05]} 28. axb6 {[%clk 0:01:28]}  Rb7 {[%clk 0:00:02]} 29. cxb5 {[%clk 0:01:08]}  Rxb6 {[%clk 0:00:02]} 30. Ra7 {[%clk 0:01:05]}  Reb8 {[%clk 0:00:02]} 31. Rdd7 {[%clk 0:01:04]}  Be8 {[%clk 0:00:02]} 32. Rxg7 {[%clk 0:01:02]}  Bxb5 {[%clk 0:00:02]} 33. Rxh7 {[%clk 0:00:57]}  Kg8 {[%clk 0:00:02]} 34. Rag7+ {[%clk 0:00:56]}  Kf8 {[%clk 0:00:03]} 35. Rc7 {[%clk 0:00:55]}  Kg8 {[%clk 0:00:03]} 36. Rhg7+ {[%clk 0:00:54]}  Kh8 {[%clk 0:00:03]} 37. Rh7+ {[%clk 0:00:52]}  Kg8 {[%clk 0:00:03]} 38. Bxb5 {[%clk 0:00:52]}  Rxb5 {[%clk 0:00:03]} 39. Rhg7+ {[%clk 0:00:51]}  Kf8 {[%clk 0:00:04]} 40. h4 {[%clk 0:00:51]}  Rb1+ {[%clk 0:00:04]} 41. Kh2 {[%clk 0:00:51]}  Rc1 {[%clk 0:00:04]} 42. h5 {[%clk 0:00:50]}  Rc2 {[%clk 0:00:03]} 43. h6 {[%clk 0:00:50]}  Rbb2 {[%clk 0:00:04]} 44. Rcf7+ {[%clk 0:00:49]}  Ke8 {[%clk 0:00:04]} 45. Ra7 {[%clk 0:00:47]}  Rb8 {[%clk 0:00:03]} 46. Rg8# {[%clk 0:00:46]} 1-0